lending/lending_fUSD_20251021
["ID","MTS","AMOUNT","RATE_DAILY","PERIOD"]
[391945806,1761019845009,-500.0,0.00034079,14]
[391945807,1761019845019,-500.0,0.00034079,14]
[391945808,1761019845030,-500.0,0.00034079,14]
[391945809,1761019845040,-19.20387611,0.00034079,14]
[391945810,1761019845056,-480.79612389,0.00034079,14]
[391945811,1761019845065,-500.0,0.00034079,14]
[391945812,1761019845078,-500.0,0.00034079,14]
[391945813,1761019845087,-507.11535726,0.00034079,14]
[391945814,1761019845098,-592.63,0.00034079,14]
[391945815,1761019845108,-500.0,0.00034079,14]
[391945816,1761019845118,-500.0,0.00034079,14]
[391945817,1761019845128,-500.0,0.00034079,14]
[391945818,1761019845138,-599.99568961,0.00034079,14]
[391945819,1761019845148,-500.0,0.00034079,14]
[391945820,1761019845157,-722.72,0.00034079,14]
[391945821,1761019845166,-500.0,0.00034079,14]
[391945822,1761019845176,-500.0,0.00034079,14]
[391945823,1761019845186,-586.17013724,0.00034079,14]
[391945824,1761019845195,-500.0,0.00034079,14]
[391945825,1761019845204,-500.0,0.00034079,2]
[391945826,1761019845214,-500.0,0.00034079,14]
[391945827,1761019845224,-500.0,0.00034079,14]
[391945828,1761019845235,-518.07091237,0.00034079,14]
[391945829,1761019845245,-853.50177963,0.00034079,14]
[391945830,1761019845412,-500.0,0.00032876,14]
[391945831,1761019845422,-244.37372024,0.00033979,7]
[391945832,1761019845431,-1012.37822037,0.00034079,14]
[391945833,1761019845440,-500.0,0.00034079,3]
[391945834,1761019845450,-95.96929798,0.00034079,14]
[391945835,1761019845464,-404.03070202,0.00034079,14]
[391945836,1761019845474,-500.0,0.00034079,14]
[391945837,1761019845485,-500.0,0.00034079,14]
[391945838,1761019845495,-500.0,0.00034079,12]
[391945839,1761019845504,-109.85455281,0.00034079,14]
[391945840,1761019845515,-392.39854232,0.00034079,14]
[391945841,1761019845526,-500.0,0.00034079,14]
[391945842,1761019845536,-500.0,0.00034079,14]
[391945843,1761019845546,-500.0,0.00034079,14]
[391945844,1761019845555,-500.0,0.00034079,14]
[391945845,1761019845565,-500.0,0.00034079,14]
[391945846,1761019845575,-500.0,0.00034079,14]
[391945847,1761019845584,-500.0,0.00034079,14]
[391945848,1761019845593,-500.0,0.00034079,14]
[391945849,1761019845603,-500.0,0.00034079,14]
[391945850,1761019845612,-500.0,0.00034079,14]
[391945851,1761019845622,-500.0,0.00034079,14]
[391945852,1761019845631,-500.0,0.00034079,14]
[391945853,1761019845641,-500.0,0.00034079,14]
[391945854,1761019845650,-613.46981546,0.00034079,14]
[391945855,1761019845659,-500.0,0.00034079,14]
[391945856,1761019845669,-500.0,0.00034079,14]
[391945857,1761019845679,-500.0,0.00034079,14]
[391945858,1761019845688,-500.0,0.00034079,14]
[391945859,1761019845697,-411.11335197,0.00034079,14]
[391945860,1761019845709,-88.88664803,0.00034079,14]
[391945861,1761019845718,-500.0,0.00034079,14]
[391945862,1761019845730,-507.67009975,0.00034079,14]
[391945863,1761019845739,-533.18554379,0.00034079,14]
[391945864,1761019845749,-585.72498178,0.00034079,14]
[391945865,1761019845758,-500.0,0.00034079,14]
[391945866,1761019845768,-500.0,0.00034079,14]
[391945867,1761019845777,-500.0,0.00034079,14]
[391945868,1761019845787,-500.0,0.00034079,14]
[391945869,1761019845796,-1423.93,0.00034079,14]
[391945870,1761019845806,-500.0,0.00034079,14]
[391945871,1761019845815,-500.0,0.00034079,14]
[391945872,1761019845826,-512.60615789,0.00034079,14]
[391945873,1761019845841,-503.03487576,0.00034079,14]
[391945874,1761019845855,-500.0,0.00034079,14]
[391945875,1761019845864,-513.40438221,0.00034079,14]
[391945876,1761019845873,-512.89828881,0.00034079,14]
[391945877,1761019845882,-500.0,0.00034079,14]
[391945878,1761019845891,-500.0,0.00034079,14]
[391945879,1761019845900,-500.0,0.00034079,14]
[391945880,1761019845909,-503.66060212,0.00034079,14]
[391945881,1761019845919,-500.0,0.00034079,14]
[391945882,1761019845928,-500.0,0.00034079,14]
[391945883,1761019845938,-384.85994497,0.00034079,14]
[391945884,1761019845947,-500.0,0.00034079,14]
[391945885,1761019845956,-378.00301349,0.00034079,14]
[391945886,1761019845968,-128.59329323,0.00034079,14]
[391945887,1761019845978,-552.20413028,0.00034079,14]
[391945888,1761019845987,-509.92078449,0.00034079,14]
[391945889,1761019845996,-724.571966,0.00034079,14]
[391945895,1761019846349,-1741.058034,0.00034079,14]
[391945896,1761019846358,-500.0,0.00034079,14]
[391945897,1761019846368,-500.0,0.00034079,14]
[391945898,1761019846379,-500.0,0.00034079,2]
[391945899,1761019846388,-500.0,0.00034079,14]
[391945900,1761019846397,-500.0,0.00034079,14]
[391945901,1761019846407,-500.0,0.00034079,14]
[391945902,1761019846418,-532.78575719,0.00034079,14]
[391945903,1761019846427,-500.0,0.00034079,14]
[391945904,1761019846436,-331.14525611,0.00034079,14]
[391945905,1761019846448,-168.85474389,0.00034079,14]
[391945906,1761019846458,-728.32,0.00034079,14]
[391945907,1761019846467,-500.0,0.00034079,14]
[391945908,1761019846478,-500.0,0.00034079,14]
[391945909,1761019846487,-17.56690776,0.00034079,14]
[391945910,1761019846499,-280.10832223,0.00034079,14]
[391945911,1761019846510,-202.32477001,0.00034079,14]
[391945912,1761019846519,-525.1960324,0.00034079,14]
[391945913,1761019846529,-507.00289979,0.00034079,14]
[391945914,1761019846538,-427.99142577,0.00034079,14]
[391945915,1761019846548,-641.31923612,0.00034079,2]
[391945916,1761019846559,-505.28699926,0.00034079,14]
[391945917,1761019846569,-500.0,0.00034079,14]
[391945918,1761019846579,-500.0,0.00034079,14]
[391945919,1761019846588,-503.02460068,0.00034079,14]
[391945920,1761019846598,-500.0,0.00034079,14]
[391945921,1761019846607,-500.0,0.00034079,14]
[391945922,1761019846617,-500.0,0.00034079,14]
[391945923,1761019846627,-500.0,0.00034079,14]
[391945924,1761019846642,-618.6594321,0.00034079,14]
[391945925,1761019846652,-537.14477865,0.00034079,14]
[391945926,1761019846662,-428.06397133,0.00034079,14]
[391945927,1761019846671,-512.6638592,0.00034079,14]
[391945928,1761019846681,-540.21944429,0.00034079,14]
[391945929,1761019846691,-500.0,0.00034079,14]
[391945930,1761019846700,-500.0,0.00034079,14]
[391945931,1761019846710,-500.0,0.00034079,14]
[391945932,1761019846719,-500.0,0.00034079,14]
[391945933,1761019846730,-500.0,0.00034079,14]
[391945934,1761019846739,-432.62159393,0.00034079,14]
[391945935,1761019846748,-500.0,0.00034079,14]
[391945936,1761019846758,-500.0,0.00034079,14]
[391945937,1761019846767,-500.0,0.00034079,14]
[391945938,1761019846776,-500.0,0.00034079,14]
[391945939,1761019846786,-500.0,0.00034079,14]
[391945940,1761019846795,-500.0,0.00034079,14]
[391945941,1761019846806,-2337.47,0.00034079,14]
[391945942,1761019846815,-500.0,0.00034079,14]
[391945943,1761019846825,-500.0,0.00034079,14]
[391945944,1761019846835,-500.0,0.00034079,14]
[391945945,1761019846844,-500.0,0.00034079,14]
[391945946,1761019846853,-500.0,0.00034079,14]
[391945947,1761019846862,-500.0,0.00034079,5]
[391945948,1761019846871,-500.0,0.00034079,14]
[391945949,1761019846881,-500.0,0.00034079,14]
[391945950,1761019846890,-500.0,0.00034079,14]
[391945951,1761019846899,-520.87249165,0.00034079,14]
[391945952,1761019846908,-500.0,0.00034079,14]
[391945953,1761019846917,-500.0,0.00034079,14]
[391945954,1761019846927,-500.0,0.00034079,14]
[391945955,1761019846936,-500.0,0.00034079,14]
[391945956,1761019846945,-500.0,0.00034079,14]
[391945957,1761019846954,-501.1700778,0.00034079,14]
[391945958,1761019846964,-506.38120369,0.00034079,14]
[391945959,1761019846973,-549.45869723,0.00034079,14]
[391945960,1761019846985,-500.0,0.00034079,14]
[391945961,1761019846995,-500.0,0.00034079,14]
[391945962,1761019847004,-512.04726922,0.00034079,14]
[391945964,1761019847013,-500.0,0.00034079,14]
[391945966,1761019847022,-500.0,0.00034079,14]
[391945967,1761019847031,-500.0,0.00034079,14]
[391945968,1761019847041,-500.0,0.00034079,14]
[391945969,1761019847053,-501.17215965,0.00034079,14]
[391945970,1761019847066,-500.0,0.00034079,14]
[391945971,1761019847077,-500.0,0.00034079,14]
[391945972,1761019847088,-500.0,0.00034079,14]
[391945973,1761019847097,-500.0,0.00034079,14]
[391945974,1761019847109,-500.0,0.00034079,14]
[391945975,1761019847119,-500.0,0.00034079,14]
[391945976,1761019847130,-500.0,0.00034079,14]
[391945977,1761019847140,-6523.49246167,0.0003408,2]
[391945978,1761019847151,-21895.2507,0.0003408,3]
[391945979,1761019847160,-462.96242165,0.00034081,3]
[391945980,1761019847169,-373.15132496,0.00034082,2]
[391945981,1761019847179,-155.55435974,0.00034082,2]
[391945982,1761019847188,-2454.31418779,0.00034082,2]
[391945983,1761019847198,-1000.0,0.00034084,2]
[391945984,1761019847207,-2156.4134477,0.00034091,2]
[391945985,1761019847217,-150.0,0.00034093,2]
[391945986,1761019847228,-1425.0,0.000341,2]
[391945987,1761019847342,-934.671616,0.000341,14]
[391945988,1761019847352,-151.97898848,0.00034101,2]
[391945989,1761019847361,-281.45785777,0.00034104,2]
[391945990,1761019847371,-2156.4134477,0.00034104,2]
[391945991,1761019847380,-373.1513249,0.00034105,2]
[391945992,1761019847389,-11846.3075302,0.00034108,3]
[391945993,1761019847399,-150.0,0.00034112,7]
[391945994,1761019847408,-1425.0,0.00034112,2]
[391945995,1761019847417,-150.0,0.00034114,2]
[391945996,1761019847427,-2156.4134477,0.00034118,2]
[391945997,1761019847435,-150.0,0.00034118,2]
[391945998,1761019847444,-966.23149753,0.0003412,2]
[391945999,1761019847454,-1000.0,0.00034124,2]
[391946000,1761019847463,-7737.6769757,0.00034127,2]
[391946001,1761019847472,-2731.2418115,0.00034127,2]
[391946002,1761019847482,-373.1513249,0.00034127,2]
[391946003,1761019847491,-1000.0,0.0003413,2]
[391946004,1761019847500,-2156.4134477,0.00034131,2]
[391946005,1761019847509,-1425.0,0.00034132,2]
[391946006,1761019847519,-337.17421244,0.00034133,15]
[391946007,1761019847528,-150.0,0.00034133,2]
[391946008,1761019847538,-641.31923612,0.00034134,2]
[391946009,1761019847548,-300.16743507,0.0003414,3]
[391946010,1761019847569,-3568.24326045,0.0003414,3]
[391946011,1761019847730,-150.0,0.000334,3]
[391946012,1761019847739,-7977.89683468,0.0003414,3]
[391946013,1761019847748,-1538.4367301,0.00034145,2]
[391946014,1761019847760,-617.9767176,0.00034145,2]
[391946015,1761019847770,-337.17421244,0.00034147,15]
[391946016,1761019847779,-1425.0,0.00034148,2]
[391946017,1761019847789,-373.1513249,0.0003415,2]
[391946018,1761019847798,-4854.6297,0.0003415,2]
[391946019,1761019847808,-1682.52204476,0.0003415,3]
[391946020,1761019847820,-33856.40054594,0.0003415,3]
[391946021,1761019847829,-925.9248433,0.0003415,3]
[391946022,1761019847838,-1425.0,0.00034151,2]
[391946023,1761019847847,-1403.0894537,0.00034151,2]
[391946024,1761019847856,-150.0,0.00034154,2]
[391946025,1761019847866,-500.0,0.00034154,14]
[391946026,1761019847875,-500.0,0.00034154,14]
[391946027,1761019847885,-500.0,0.00034154,14]
[391946028,1761019847894,-570.25911683,0.00034154,14]
[391946029,1761019847904,-910.54,0.00034154,14]
[391946030,1761019847914,-500.0,0.00034154,14]
[391946031,1761019847924,-500.0,0.00034154,14]
[391946032,1761019847933,-500.0,0.00034154,14]
[391946033,1761019847943,-500.0,0.00034154,14]
[391946034,1761019847954,-500.0,0.00034154,14]
[391946035,1761019847964,-500.0,0.00034154,14]
[391946036,1761019847974,-500.0,0.00034154,14]
[391946037,1761019847987,-288.15936576,0.00034154,14]
[391946038,1761019847996,-500.0,0.00034154,14]
[391946039,1761019848006,-500.0,0.00034154,14]
[391946040,1761019848017,-500.0,0.00034154,14]
[391946041,1761019848026,-500.0,0.00034154,14]
[391946042,1761019848035,-500.0,0.00034154,14]
[391946043,1761019848045,-23692.6150605,0.00034154,3]
[391946044,1761019848056,-462.96242165,0.00034154,3]
[391946045,1761019848066,-35538.9225907,0.00034154,3]
[391946046,1761019848076,-462.96242165,0.00034154,3]
[391946047,1761019848085,-150.0,0.00034155,2]
[391946048,1761019848095,-2156.4134477,0.00034158,2]
[391946049,1761019848105,-925.9248433,0.00034159,3]
[391946050,1761019848114,-462.96242165,0.0003416,3]
[391946051,1761019848124,-511.15997311,0.0003416,14]
[391946052,1761019848134,-500.0,0.0003416,14]
[391946053,1761019848144,-304.3438554,0.0003416,14]
[391946054,1761019848152,-500.0,0.0003416,14]
[391946055,1761019848161,-500.0,0.0003416,14]
[391946056,1761019848171,-500.0,0.0003416,14]
[391946057,1761019848180,-1429.77,0.0003416,14]
[391946058,1761019848189,-500.0,0.0003416,14]
[391946059,1761019848199,-509.90703122,0.0003416,14]
[391946060,1761019848208,-500.0,0.0003416,14]
[391946061,1761019848217,-500.0,0.0003416,14]
[391946062,1761019848228,-500.0,0.0003416,14]
[391946063,1761019848237,-518.67918129,0.0003416,14]
[391946064,1761019848246,-500.0,0.0003416,14]
[391946065,1761019848255,-545.04070204,0.0003416,14]
[391946066,1761019848264,-500.0,0.0003416,14]
[391946067,1761019848273,-500.0,0.0003416,14]
[391946068,1761019848282,-536.68109498,0.0003416,14]
[391946069,1761019848291,-500.0,0.0003416,14]
[391946070,1761019848300,-500.0,0.0003416,14]
[391946071,1761019848308,-502.3632331,0.0003416,14]
[391946072,1761019848317,-500.0,0.0003416,14]
[391946073,1761019848326,-500.0,0.0003416,14]
[391946074,1761019848336,-500.0,0.0003416,14]
[391946075,1761019848345,-500.0,0.0003416,14]
[391946076,1761019848354,-500.0,0.0003416,14]
[391946077,1761019848364,-500.0,0.0003416,14]
[391946078,1761019848373,-500.0,0.0003416,14]
[391946079,1761019848382,-500.0,0.0003416,14]
[391946080,1761019848391,-500.0,0.0003416,14]
[391946081,1761019848404,-500.0,0.0003416,14]
[391946082,1761019848413,-500.0,0.0003416,14]
[391946083,1761019848422,-500.0,0.0003416,14]
[391946084,1761019848432,-500.0,0.0003416,14]
[391946085,1761019848441,-500.0,0.0003416,14]
[391946086,1761019848450,-500.0,0.0003416,14]
[391946087,1761019848459,-500.0,0.0003416,14]
[391946088,1761019848468,-500.0,0.0003416,14]
[391946089,1761019848478,-500.0,0.0003416,14]
[391946090,1761019848488,-518.04558146,0.0003416,14]
[391946091,1761019848497,-500.0,0.0003416,14]
[391946092,1761019848506,-500.0,0.0003416,14]
[391946093,1761019848515,-500.0,0.0003416,14]
[391946094,1761019848525,-500.0,0.0003416,14]
[391946095,1761019848535,-500.0,0.0003416,14]
[391946096,1761019848544,-500.0,0.0003416,14]
[391946097,1761019848553,-500.0,0.0003416,14]
[391946098,1761019848562,-500.0,0.0003416,14]
[391946099,1761019848572,-500.0,0.0003416,14]
[391946100,1761019848581,-584.02177238,0.0003416,14]
[391946101,1761019848590,-500.0,0.0003416,14]
[391946102,1761019848599,-500.0,0.0003416,14]
[391946103,1761019848608,-500.0,0.0003416,14]
[391946104,1761019848618,-500.0,0.0003416,14]
[391946105,1761019848627,-500.0,0.0003416,14]
[391946106,1761019848636,-500.0,0.0003416,14]
[391946107,1761019848645,-500.0,0.0003416,14]
[391946108,1761019848654,-500.0,0.0003416,14]
[391946109,1761019848757,-500.0,0.0003416,14]
[391946110,1761019848767,-514.41243989,0.0003416,14]
[391946111,1761019848776,-500.0,0.0003416,14]
[391946112,1761019848786,-500.0,0.0003416,14]
[391946113,1761019848795,-500.0,0.0003416,14]
[391946114,1761019848805,-500.0,0.0003416,14]
[391946115,1761019848815,-1034.5,0.0003416,14]
[391946116,1761019848824,-500.0,0.0003416,14]
[391946117,1761019848833,-272.79693122,0.0003416,14]
[391946118,1761019848842,-500.0,0.0003416,14]
[391946119,1761019848852,-472.27851878,0.0003416,14]
[391946120,1761019848862,-451.41756748,0.0003416,14]
[391946121,1761019848871,-500.0,0.0003416,14]
[391946122,1761019848880,-529.67704251,0.0003416,14]
[391946123,1761019848891,-500.0,0.0003416,14]
[391946124,1761019848901,-500.0,0.0003416,14]
[391946125,1761019848910,-500.0,0.0003416,14]
[391946126,1761019848919,-500.0,0.0003416,14]
[391946127,1761019848928,-500.0,0.0003416,14]
[391946128,1761019848937,-748.87,0.0003416,14]
[391946129,1761019848947,-500.0,0.0003416,14]
[391946130,1761019848956,-471.27581905,0.0003416,14]
[391946131,1761019848966,-500.0,0.0003416,14]
[391946132,1761019848976,-500.0,0.0003416,14]
[391946133,1761019848987,-532.46193209,0.0003416,14]
[391946134,1761019848997,-500.0,0.0003416,14]
[391946135,1761019849007,-500.0,0.0003416,14]
[391946136,1761019849017,-500.0,0.0003416,14]
[391946137,1761019849027,-500.0,0.0003416,14]
[391946138,1761019849036,-949.96,0.0003416,14]
[391946139,1761019849046,-620.2144747,0.0003416,14]
[391946140,1761019849058,-500.0,0.0003416,14]
[391946141,1761019849067,-500.0,0.0003416,14]
[391946142,1761019849076,-605.44195018,0.0003416,14]
[391946143,1761019849085,-500.0,0.0003416,14]
[391946144,1761019849097,-500.0,0.0003416,14]
[391946145,1761019849107,-500.0,0.0003416,14]
[391946146,1761019849116,-500.0,0.0003416,14]
[391946147,1761019849126,-500.0,0.0003416,14]
[391946148,1761019849137,-500.0,0.0003416,14]
[391946149,1761019849146,-500.0,0.0003416,14]
[391946150,1761019849155,-500.0,0.0003416,14]
[391946151,1761019849165,-500.0,0.0003416,14]
[391946152,1761019849174,-500.0,0.0003416,14]
[391946153,1761019849183,-514.78173668,0.0003416,14]
[391946154,1761019849193,-500.0,0.0003416,7]
[391946155,1761019849202,-500.0,0.0003416,14]
[391946156,1761019849212,-512.5432058,0.0003416,14]
[391946157,1761019849222,-500.0,0.0003416,12]
[391946158,1761019849234,-500.0,0.0003416,14]
[391946159,1761019849244,-500.0,0.0003416,14]
[391946160,1761019849253,-500.0,0.0003416,14]
[391946161,1761019849263,-500.0,0.0003416,14]
[391946162,1761019849272,-500.0,0.0003416,14]
[391946163,1761019849281,-640.35801535,0.0003416,14]
[391946164,1761019849291,-795.5,0.0003416,14]
[391946165,1761019849300,-367.16244211,0.0003416,14]
[391946166,1761019849309,-500.0,0.0003416,14]
[391946167,1761019849319,-500.0,0.0003416,14]
[391946168,1761019849328,-500.0,0.0003416,14]
[391946169,1761019849338,-500.0,0.0003416,14]
[391946170,1761019849348,-521.1500565,0.0003416,14]
[391946171,1761019849358,-288.02422993,0.0003416,14]
[391946172,1761019849368,-500.0,0.0003416,14]
[391946173,1761019849377,-500.0,0.0003416,14]
[391946174,1761019849387,-500.0,0.0003416,14]
[391946175,1761019849396,-500.0,0.0003416,14]
[391946176,1761019849406,-500.0,0.0003416,14]
[391946177,1761019849415,-564.95,0.0003416,14]
[391946178,1761019849424,-500.0,0.0003416,14]
[391946179,1761019849434,-500.0,0.0003416,14]
[391946180,1761019849443,-500.0,0.0003416,14]
[391946181,1761019849453,-500.0,0.0003416,14]
[391946182,1761019849463,-500.0,0.0003416,14]
[391946183,1761019849472,-500.0,0.0003416,14]
[391946184,1761019849488,-500.0,0.0003416,14]
[391946185,1761019849497,-502.37853646,0.0003416,14]
[391946186,1761019849507,-567.43,0.0003416,14]
[391946187,1761019849518,-500.0,0.0003416,14]
[391946188,1761019849527,-500.0,0.0003416,14]
[391946189,1761019849538,-527.58129089,0.0003416,14]
[391946190,1761019849548,-500.0,0.0003416,14]
[391946191,1761019849557,-584.76227921,0.0003416,14]
[391946192,1761019849567,-575.16561349,0.0003416,14]
[391946193,1761019849576,-500.0,0.0003416,14]
[391946194,1761019849586,-500.0,0.0003416,14]
[391946195,1761019849595,-500.0,0.0003416,14]
[391946196,1761019849604,-566.735612,0.0003416,14]
[391946197,1761019849614,-500.0,0.0003416,14]
[391946198,1761019849623,-500.0,0.0003416,14]
[391946199,1761019849633,-500.0,0.0003416,14]
[391946200,1761019849642,-510.08052052,0.0003416,14]
[391946201,1761019849651,-500.0,0.0003416,14]
[391946202,1761019849660,-500.0,0.0003416,14]
[391946203,1761019849670,-496.10564163,0.0003416,14]
[391946204,1761019849679,-500.0,0.0003416,14]
[391946205,1761019849688,-500.0,0.0003416,14]
[391946206,1761019849698,-500.0,0.0003416,14]
[391946207,1761019849707,-526.7012182,0.0003416,14]
[391946208,1761019849716,-500.0,0.0003416,14]
[391946209,1761019849725,-500.0,0.0003416,14]
[391946210,1761019849740,-500.0,0.0003416,14]
[391946211,1761019849749,-500.0,0.0003416,14]
[391946212,1761019849758,-500.0,0.0003416,14]
[391946213,1761019849767,-508.36,0.0003416,14]
[391946214,1761019849777,-500.0,0.0003416,14]
[391946215,1761019849786,-219.78048996,0.0003416,14]
[391946216,1761019849795,-2516.25,0.0003416,14]
[391946217,1761019849805,-500.0,0.0003416,14]
[391946218,1761019849814,-465.01483852,0.0003416,14]
[391946219,1761019849824,-500.0,0.0003416,14]
[391946220,1761019849834,-540.71,0.0003416,14]
[391946221,1761019849843,-500.0,0.0003416,14]
[391946222,1761019849852,-500.0,0.0003416,14]
[391946223,1761019849861,-500.0,0.0003416,14]
[391946224,1761019849871,-500.0,0.0003416,14]
[391946225,1761019849881,-500.0,0.0003416,14]
[391946226,1761019849890,-500.0,0.0003416,14]
[391946227,1761019849899,-500.0,0.0003416,14]
[391946228,1761019849908,-511.52355755,0.0003416,14]
[391946229,1761019849917,-500.0,0.0003416,14]
[391946230,1761019849926,-500.0,0.0003416,14]
[391946231,1761019849935,-500.0,0.0003416,14]
[391946232,1761019849944,-500.0,0.0003416,14]
[391946233,1761019849952,-592.63,0.0003416,14]
[391946234,1761019849961,-211.22325712,0.0003416,14]
[391946235,1761019849970,-500.0,0.0003416,14]
[391946236,1761019849982,-500.0,0.0003416,14]
[391946237,1761019849991,-722.72,0.0003416,14]
[391946238,1761019850084,-500.0,0.0003416,14]
[391946239,1761019850093,-500.0,0.0003416,14]
[391946240,1761019850103,-500.0,0.0003416,14]
[391946241,1761019850113,-558.546897,0.0003416,14]
[391946242,1761019850122,-1865.88,0.0003416,14]
[391946243,1761019850132,-500.0,0.0003416,14]
[391946244,1761019850141,-500.0,0.0003416,14]
[391946245,1761019850150,-500.0,0.0003416,12]
[391946246,1761019850160,-584.94091771,0.0003416,14]
[391946247,1761019850169,-315.32457342,0.0003416,14]
[391946248,1761019850178,-500.0,0.0003416,14]
[391946249,1761019850187,-500.0,0.0003416,14]
[391946250,1761019850197,-500.0,0.0003416,14]
[391946251,1761019850206,-500.0,0.0003416,14]
[391946252,1761019850215,-500.0,0.0003416,14]
[391946253,1761019850224,-500.0,0.0003416,14]
[391946254,1761019850237,-494.6943465,0.0003416,14]
[391946255,1761019850247,-500.0,0.0003416,14]
[391946256,1761019850256,-502.07896096,0.0003416,14]
[391946257,1761019850265,-500.0,0.0003416,14]
[391946258,1761019850274,-500.0,0.0003416,14]
[391946259,1761019850284,-500.0,0.0003416,14]
[391946260,1761019850294,-500.0,0.0003416,14]
[391946261,1761019850303,-500.0,0.0003416,14]
[391946262,1761019850313,-1423.93,0.0003416,14]
[391946263,1761019850322,-500.0,0.0003416,14]
[391946264,1761019850332,-500.0,0.0003416,14]
[391946265,1761019850341,-500.0,0.0003416,14]
[391946266,1761019850350,-500.0,0.0003416,14]
[391946267,1761019850359,-500.0,0.0003416,14]
[391946268,1761019850368,-2465.63,0.0003416,14]
[391946269,1761019850377,-500.0,0.0003416,2]
[391946270,1761019850387,-500.0,0.0003416,14]
[391946271,1761019850397,-588.5445872,0.0003416,14]
[391946272,1761019850406,-728.32,0.0003416,14]
[391946273,1761019850415,-500.0,0.0003416,14]
[391946274,1761019850424,-420.70197487,0.0003416,14]
[391946275,1761019850434,-500.0,0.0003416,14]
[391946276,1761019850443,-524.05928324,0.0003416,14]
[391946277,1761019850452,-500.0,0.0003416,14]
[391946278,1761019850462,-583.95253783,0.0003416,14]
[391946279,1761019850471,-500.0,0.0003416,14]
[391946280,1761019850481,-509.52318429,0.0003416,14]
[391946281,1761019850490,-500.0,0.0003416,14]
[391946282,1761019850499,-341.63679299,0.0003416,14]
[391946283,1761019850508,-500.0,0.0003416,14]
[391946284,1761019850517,-504.76268369,0.0003416,14]
[391946285,1761019850527,-500.0,0.0003416,14]
[391946286,1761019850536,-531.94732967,0.0003416,14]
[391946287,1761019850546,-500.0,0.0003416,14]
[391946288,1761019850555,-500.0,0.0003416,14]
[391946289,1761019850564,-500.0,0.0003416,14]
[391946290,1761019850574,-500.0,0.0003416,14]
[391946291,1761019850583,-500.0,0.0003416,14]
[391946292,1761019850592,-500.0,0.0003416,14]
[391946293,1761019850602,-500.0,0.0003416,14]
[391946294,1761019850611,-503.24656968,0.0003416,5]
[391946295,1761019850620,-500.0,0.0003416,14]
[391946296,1761019850630,-500.0,0.0003416,14]
[391946297,1761019850650,-500.0,0.0003416,14]
[391946298,1761019850666,-500.0,0.0003416,14]
[391946299,1761019850685,-500.0,0.0003416,14]
[391946300,1761019850705,-500.0,0.0003416,14]
[391946301,1761019850719,-500.0,0.0003416,14]
[391946302,1761019850740,-500.0,0.0003416,14]
[391946303,1761019850759,-500.0,0.0003416,14]
[391946304,1761019850779,-500.0,0.0003416,14]
[391946305,1761019850800,-500.0,0.0003416,14]
[391946306,1761019850818,-500.0,0.0003416,14]
[391946307,1761019850836,-151.00000013,0.0003416,30]
[391946308,1761019850851,-500.0,0.0003416,14]
[391946309,1761019850870,-636.6311675,0.0003416,14]
[391946310,1761019850883,-500.0,0.0003416,14]
[391946311,1761019850904,-500.0,0.0003416,14]
[391946312,1761019850918,-925.9248433,0.0003416,3]